[Event "2026 European Womens Championship"]
[Site "Batumi, GE"]
[Date "2026.06.02"]
[Round "8"]
[White "Shuqja, Klean"]
[Black "Starosta, Martyna"]
[Result "0-1"]
[Board "55"]
[TimeControl "5400+30"]
[WhiteFideId "4701585"]
[BlackFideId "21818754"]
[WhiteElo "2092"]
[BlackElo "2175"]
[WhiteTitle "WFM"]
[BlackTitle "WIM"]
[WhiteClock "0:22:17"]
[BlackClock "0:29:57"]
[Variant "Standard"]

1. e4 {[%clk 1:25:22]}  e6 {[%clk 1:30:51]} 2. d3 {[%clk 1:25:42]}  c5 {[%clk 1:30:58]} 3. Nf3 {[%clk 1:26:09]}  Nc6 {[%clk 1:30:57]}
4. g3 {[%clk 1:26:30]}  g6 {[%clk 1:30:34]} 5. Bg2 {[%clk 1:26:58]}  Bg7 {[%clk 1:30:42]} 6. O-O {[%clk 1:27:26]}  Nge7 {[%clk 1:30:48]}
7. Re1 {[%clk 1:27:43]}  d6 {[%clk 1:24:33]} 8. c3 {[%clk 1:27:58]}  e5 {[%clk 1:22:53]} 9. Be3 {[%clk 1:27:17]}  O-O {[%clk 1:21:56]}
10. Qd2 {[%clk 1:21:51]}  b6 {[%clk 1:08:58]} 11. Na3 {[%clk 1:12:53]}  d5 {[%clk 1:01:52]} 12. exd5 {[%clk 1:10:11]}  Nxd5 {[%clk 1:02:07]}
13. Bh6 {[%clk 1:08:59]}  Re8 {[%clk 0:56:26]} 14. Bxg7 {[%clk 1:06:06]}  Kxg7 {[%clk 0:56:44]} 15. c4 {[%clk 1:00:55]}  Nc7 {[%clk 0:47:36]}
16. Nb5 {[%clk 0:53:06]}  Bg4 {[%clk 0:38:49]} 17. Ng5 {[%clk 0:34:33]}  Nxb5 {[%clk 0:32:05]} 18. cxb5 {[%clk 0:18:19]}  Nd4 {[%clk 0:32:08]}
19. h3 {[%clk 0:17:49]}  Bd7 {[%clk 0:30:15]} 20. Nf3 {[%clk 0:03:58]}  Nxf3+ {[%clk 0:19:26]} 21. Bxf3 {[%clk 0:04:26]}  Rc8 {[%clk 0:19:28]}
22. a4 {[%clk 0:03:28]}  Bxh3 {[%clk 0:17:21]} 23. Qc3 {[%clk 0:02:20]}  Qf6 {[%clk 0:13:04]} 24. Re3 {[%clk 0:01:30]}  Rcd8 {[%clk 0:12:21]}
25. Bc6 {[%clk 0:01:13]}  Bd7 {[%clk 0:09:05]} 26. Bxd7 {[%clk 0:00:33]}  Rxd7 {[%clk 0:09:34]} 27. Rae1 {[%clk 0:00:48]}  Rd4 {[%clk 0:09:24]}
28. a5 {[%clk 0:00:39]}  Qd6 {[%clk 0:07:25]} 29. f4 {[%clk 0:00:32]}  f6 {[%clk 0:07:16]} 30. axb6 {[%clk 0:00:50]}  axb6 {[%clk 0:07:19]}
31. Qa3 {[%clk 0:00:33]}  Re7 {[%clk 0:06:06]} 32. fxe5 {[%clk 0:00:34]}  fxe5 {[%clk 0:04:48]} 33. Qc3 {[%clk 0:00:41]}  Rf7 {[%clk 0:03:23]}
34. Kg2 {[%clk 0:00:32]}  Rf5 {[%clk 0:02:27]} 35. Rf1 {[%clk 0:00:32]}  Qd5+ {[%clk 0:02:24]} 36. Kg1 {[%clk 0:00:49]}  Rxf1+ {[%clk 0:01:25]}
37. Kxf1 {[%clk 0:01:18]}  Kf6 {[%clk 0:01:02]} 38. Kf2 {[%clk 0:00:58]}  Rb4 {[%clk 0:00:55]} 39. Rf3+ {[%clk 0:00:47]}  Ke6 {[%clk 0:01:24]}
40. Re3 {[%clk 0:00:37]}  Qd4 {[%clk 0:01:25]} 41. Qxd4 {[%clk 0:28:03]}  cxd4 {[%clk 0:31:33]} 42. Re2 {[%clk 0:28:16]}  Rxb5 {[%clk 0:31:27]}
43. Kf3 {[%clk 0:28:00]}  Kd5 {[%clk 0:30:42]} 44. Kg4 {[%clk 0:24:23]}  Rb3 {[%clk 0:29:56]} 45. Rd2 {[%clk 0:22:26]}  e4 {[%clk 0:29:34]}
46. dxe4+ {[%clk 0:22:34]}  Kxe4 {[%clk 0:29:59]} 47. Re2+ {[%clk 0:21:59]}  Re3 {[%clk 0:30:14]} 48. Rc2 {[%clk 0:21:59]}  h5 {[%clk 0:29:40]}
49. Kh4 {[%clk 0:22:12]}  d3 {[%clk 0:29:48]} 50. Rc6 {[%clk 0:22:17]}  d2 {[%clk 0:29:57]} 0-1

[Event "2026 European Womens Championship"]
[Site "Batumi, GE"]
[Date "2026.06.02"]
[Round "8"]
[White "Odisharia, Teona"]
[Black "Tsirulnik, Maritsa"]
[Result "1-0"]
[Board "56"]
[TimeControl "5400+30"]
[WhiteFideId "13602322"]
[BlackFideId "14118688"]
[WhiteElo "2167"]
[BlackElo "2028"]
[WhiteTitle "WFM"]
[BlackTitle "WFM"]
[WhiteClock "0:15:11"]
[BlackClock "0:07:06"]
[Variant "Standard"]

1. e4 {[%clk 1:30:59]}  c5 {[%clk 1:30:53]} 2. Nf3 {[%clk 1:31:10]}  e6 {[%clk 1:31:16]} 3. d4 {[%clk 1:31:31]}  cxd4 {[%clk 1:31:38]}
4. Nxd4 {[%clk 1:31:54]}  Nc6 {[%clk 1:31:56]} 5. Nc3 {[%clk 1:32:06]}  Qc7 {[%clk 1:32:06]} 6. Be3 {[%clk 1:31:26]}  a6 {[%clk 1:31:59]}
7. Qd2 {[%clk 1:31:15]}  Nf6 {[%clk 1:31:20]} 8. O-O-O {[%clk 1:30:49]}  Bb4 {[%clk 1:28:38]} 9. f3 {[%clk 1:30:45]}  Ne7 {[%clk 1:26:06]}
10. Nde2 {[%clk 1:25:38]}  b5 {[%clk 1:24:14]} 11. Bg5 {[%clk 1:18:34]}  h6 {[%clk 1:16:33]} 12. Bxf6 {[%clk 1:15:21]}  gxf6 {[%clk 1:16:58]}
13. Qd4 {[%clk 1:15:43]}  Bxc3 {[%clk 1:14:47]} 14. Nxc3 {[%clk 1:15:58]}  Qe5 {[%clk 1:09:49]} 15. Qe3 {[%clk 1:01:23]}  Bb7 {[%clk 0:56:37]}
16. Kb1 {[%clk 0:54:04]}  h5 {[%clk 0:50:51]} 17. Bd3 {[%clk 0:41:36]}  Bc6 {[%clk 0:34:25]} 18. Rhe1 {[%clk 0:33:48]}  d6 {[%clk 0:32:15]}
19. f4 {[%clk 0:25:32]}  Qc5 {[%clk 0:32:01]} 20. Qg3 {[%clk 0:25:52]}  Rg8 {[%clk 0:28:25]} 21. Qh3 {[%clk 0:23:09]}  a5 {[%clk 0:19:48]}
22. e5 {[%clk 0:18:50]}  fxe5 {[%clk 0:19:06]} 23. fxe5 {[%clk 0:19:09]}  d5 {[%clk 0:16:53]} 24. Qxh5 {[%clk 0:18:52]}  Rxg2 {[%clk 0:15:13]}
25. Rf1 {[%clk 0:17:59]}  Ng6 {[%clk 0:14:25]} 26. Qf3 {[%clk 0:16:09]}  b4 {[%clk 0:11:17]} 27. Ne2 {[%clk 0:15:53]}  Rxe2 {[%clk 0:06:45]}
28. Qxf7+ {[%clk 0:14:25]}  Kd8 {[%clk 0:07:11]} 29. Bxe2 {[%clk 0:14:49]}  Nxe5 {[%clk 0:07:06]} 30. Qf6+ {[%clk 0:15:11]} 1-0

[Event "2026 European Womens Championship"]
[Site "Batumi, GE"]
[Date "2026.06.02"]
[Round "8"]
[White "Tashkinova, Sofiia"]
[Black "Berke, Ana"]
[Result "1-0"]
[Board "57"]
[TimeControl "5400+30"]
[WhiteFideId "14188309"]
[BlackFideId "14510359"]
[WhiteElo "2085"]
[BlackElo "2164"]
[WhiteTitle "WFM"]
[BlackTitle "WIM"]
[WhiteClock "0:13:06"]
[BlackClock "0:05:50"]
[Variant "Standard"]

1. e4 {[%clk 1:27:37]}  c5 {[%clk 1:30:48]} 2. Nf3 {[%clk 1:28:02]}  g6 {[%clk 1:31:09]} 3. c4 {[%clk 1:23:01]}  Nc6 {[%clk 1:29:56]}
4. d4 {[%clk 1:22:28]}  cxd4 {[%clk 1:29:50]} 5. Nxd4 {[%clk 1:22:48]}  d6 {[%clk 1:29:42]} 6. Nc3 {[%clk 1:22:35]}  Nf6 {[%clk 1:29:44]}
7. f3 {[%clk 1:21:29]}  Nxd4 {[%clk 1:28:08]} 8. Qxd4 {[%clk 1:21:51]}  Bg7 {[%clk 1:28:21]} 9. Be3 {[%clk 1:20:46]}  O-O {[%clk 1:28:28]}
10. Qd2 {[%clk 1:20:28]}  a5 {[%clk 1:25:12]} 11. g4 {[%clk 1:18:57]}  Be6 {[%clk 1:21:01]} 12. h4 {[%clk 1:11:51]}  Nd7 {[%clk 1:17:11]}
13. Be2 {[%clk 1:09:09]}  Ne5 {[%clk 1:07:55]} 14. Nd5 {[%clk 1:08:30]}  a4 {[%clk 1:02:42]} 15. Bh6 {[%clk 1:01:43]}  Bxd5 {[%clk 0:59:30]}
16. exd5 {[%clk 1:00:59]}  Qa5 {[%clk 0:53:04]} 17. Bxg7 {[%clk 1:00:25]}  Kxg7 {[%clk 0:52:51]} 18. f4 {[%clk 0:59:45]}  Nd7 {[%clk 0:52:38]}
19. Qxa5 {[%clk 0:58:36]}  Ra7 {[%clk 0:52:33]} 20. Qa6 {[%clk 0:58:36]}  Rxa6 {[%clk 0:53:02]} 21. Kd2 {[%clk 0:58:41]}  Ra5 {[%clk 0:51:53]}
22. Rad1 {[%clk 0:50:43]}  Nc5 {[%clk 0:51:52]} 23. Rde1 {[%clk 0:52:53]}  Rc8 {[%clk 0:49:43]} 24. Bf1 {[%clk 0:51:21]}  Rc7 {[%clk 0:48:47]}
25. h5 {[%clk 0:50:02]}  Ra8 {[%clk 0:46:12]} 26. Rh3 {[%clk 0:46:31]}  Na6 {[%clk 0:44:56]} 27. h6+ {[%clk 0:44:23]}  Kf8 {[%clk 0:44:33]}
28. f5 {[%clk 0:42:30]}  Rac8 {[%clk 0:39:21]} 29. fxg6 {[%clk 0:37:59]}  hxg6 {[%clk 0:33:19]} 30. g5 {[%clk 0:31:28]}  b5 {[%clk 0:25:52]}
31. Rf3 {[%clk 0:29:33]}  Kg8 {[%clk 0:19:39]} 32. Bh3 {[%clk 0:27:24]}  Rf8 {[%clk 0:19:48]} 33. Be6 {[%clk 0:25:58]}  Nc5 {[%clk 0:14:08]}
34. cxb5 {[%clk 0:21:15]}  Rb7 {[%clk 0:13:37]} 35. Kc1 {[%clk 0:19:03]}  Rxb5 {[%clk 0:12:34]} 36. Ref1 {[%clk 0:18:51]}  Nxe6 {[%clk 0:10:45]}
37. dxe6 {[%clk 0:18:54]}  Rxg5 {[%clk 0:08:14]} 38. Rxf7 {[%clk 0:16:09]}  Rc8+ {[%clk 0:07:16]} 39. Kb1 {[%clk 0:15:31]}  a3 {[%clk 0:06:01]}
40. Rxe7 {[%clk 0:13:47]}  Rh5 {[%clk 0:05:54]} 41. Rg7+ {[%clk 0:13:36]}  Kh8 {[%clk 0:05:57]} 42. e7 {[%clk 0:13:11]}  Rxh6 {[%clk 0:05:50]}
43. Rgf7 {[%clk 0:13:06]} 1-0

[Event "2026 European Womens Championship"]
[Site "Batumi, GE"]
[Date "2026.06.02"]
[Round "8"]
[White "Mamedjarova, Zeinab"]
[Black "Radikovic, Anamarija"]
[Result "1-0"]
[Board "58"]
[TimeControl "5400+30"]
[WhiteFideId "13401521"]
[BlackFideId "14546264"]
[WhiteElo "2137"]
[BlackElo "1974"]
[WhiteTitle "WGM"]
[BlackTitle "WFM"]
[WhiteClock "0:08:45"]
[BlackClock "0:00:55"]
[Variant "Standard"]

1. d4 {[%clk 1:30:40]}  Nf6 {[%clk 1:30:54]} 2. Bg5 {[%clk 1:30:57]}  c5 {[%clk 1:31:18]} 3. d5 {[%clk 1:31:23]}  Ne4 {[%clk 1:31:42]}
4. Bc1 {[%clk 1:28:35]}  e6 {[%clk 1:31:42]} 5. c4 {[%clk 1:28:07]}  g6 {[%clk 1:27:13]} 6. g3 {[%clk 1:26:20]}  Bg7 {[%clk 1:25:59]}
7. Bg2 {[%clk 1:26:31]}  Qa5+ {[%clk 1:25:37]} 8. Nd2 {[%clk 1:25:04]}  Nd6 {[%clk 1:18:37]} 9. Qc2 {[%clk 1:21:40]}  exd5 {[%clk 1:14:05]}
10. cxd5 {[%clk 1:21:26]}  Na6 {[%clk 1:13:34]} 11. a3 {[%clk 1:19:14]}  c4 {[%clk 1:04:25]} 12. Kf1 {[%clk 1:17:30]}  Nb4 {[%clk 0:53:38]}
13. Qb1 {[%clk 1:16:49]}  Nxd5 {[%clk 0:48:32]} 14. Nxc4 {[%clk 0:54:05]}  Nxc4 {[%clk 0:48:19]} 15. Qe4+ {[%clk 0:54:24]}  Ne7 {[%clk 0:43:30]}
16. Qxc4 {[%clk 0:54:20]}  O-O {[%clk 0:36:51]} 17. h4 {[%clk 0:54:22]}  d5 {[%clk 0:36:12]} 18. Qb3 {[%clk 0:52:07]}  Be6 {[%clk 0:26:51]}
19. Nf3 {[%clk 0:46:43]}  d4 {[%clk 0:20:06]} 20. Qd1 {[%clk 0:45:17]}  Qb6 {[%clk 0:19:44]} 21. h5 {[%clk 0:44:31]}  Bb3 {[%clk 0:17:15]}
22. Qd3 {[%clk 0:43:24]}  Rac8 {[%clk 0:14:25]} 23. hxg6 {[%clk 0:41:52]}  fxg6 {[%clk 0:13:34]} 24. Bg5 {[%clk 0:29:14]}  Bc4 {[%clk 0:11:43]}
25. Qd2 {[%clk 0:26:29]}  Nf5 {[%clk 0:10:21]} 26. Rc1 {[%clk 0:26:12]}  Nd6 {[%clk 0:07:26]} 27. Rh4 {[%clk 0:24:14]}  Nf5 {[%clk 0:05:08]}
28. Rh1 {[%clk 0:23:13]}  Ba6 {[%clk 0:04:47]} 29. Rxc8 {[%clk 0:21:34]}  Rxc8 {[%clk 0:05:11]} 30. Ne1 {[%clk 0:21:56]}  Qb5 {[%clk 0:03:40]}
31. Nd3 {[%clk 0:18:54]}  Re8 {[%clk 0:03:49]} 32. a4 {[%clk 0:15:10]}  Qxa4 {[%clk 0:02:02]} 33. Bd5+ {[%clk 0:15:31]}  Kh8 {[%clk 0:02:26]}
34. Nf4 {[%clk 0:15:42]}  Bxe2+ {[%clk 0:01:32]} 35. Nxe2 {[%clk 0:12:42]}  Qb5 {[%clk 0:01:54]} 36. Bf3 {[%clk 0:12:14]}  d3 {[%clk 0:01:12]}
37. Nc3 {[%clk 0:11:51]}  Qc4 {[%clk 0:01:10]} 38. Kg2 {[%clk 0:10:35]}  Nd4 {[%clk 0:01:05]} 39. Qf4 {[%clk 0:10:07]}  Rf8 {[%clk 0:00:55]}
40. Rxh7+ {[%clk 0:08:45]} 1-0

[Event "2026 European Womens Championship"]
[Site "Batumi, GE"]
[Date "2026.06.02"]
[Round "8"]
[White "Avetisyan, Ani"]
[Black "Skvortsova, Alena"]
[Result "1-0"]
[Board "59"]
[TimeControl "5400+30"]
[WhiteFideId "13319035"]
[BlackFideId "24166251"]
[WhiteElo "2052"]
[BlackElo "2135"]
[BlackTitle "WFM"]
[WhiteClock "0:04:57"]
[BlackClock "0:00:39"]
[Variant "Standard"]

1. d4 {[%clk 1:30:57]}  g6 {[%clk 1:30:54]} 2. c4 {[%clk 1:31:15]}  Bg7 {[%clk 1:31:18]} 3. Nf3 {[%clk 1:31:19]}  d6 {[%clk 1:31:41]}
4. g3 {[%clk 1:31:37]}  Nf6 {[%clk 1:31:59]} 5. Nc3 {[%clk 1:32:03]}  Bf5 {[%clk 1:25:26]} 6. Nh4 {[%clk 1:29:25]}  Bd7 {[%clk 1:25:12]}
7. Bg2 {[%clk 1:29:23]}  Nc6 {[%clk 1:24:39]} 8. Nf3 {[%clk 1:24:43]}  Rb8 {[%clk 1:22:40]} 9. O-O {[%clk 1:24:41]}  a6 {[%clk 1:22:58]}
10. a4 {[%clk 1:18:49]}  Na5 {[%clk 1:07:18]} 11. b3 {[%clk 1:16:15]}  O-O {[%clk 1:06:27]} 12. e4 {[%clk 1:13:50]}  c5 {[%clk 1:03:31]}
13. dxc5 {[%clk 1:04:39]}  Nxe4 {[%clk 0:44:20]} 14. Nxe4 {[%clk 1:04:45]}  Bxa1 {[%clk 0:44:44]} 15. Bg5 {[%clk 0:53:42]}  Bg7 {[%clk 0:38:32]}
16. cxd6 {[%clk 0:52:50]}  f6 {[%clk 0:35:47]} 17. dxe7 {[%clk 0:45:54]}  Qxe7 {[%clk 0:36:10]} 18. Bf4 {[%clk 0:38:49]}  Rbd8 {[%clk 0:30:51]}
19. Qd5+ {[%clk 0:36:50]}  Qe6 {[%clk 0:29:15]} 20. Qxa5 {[%clk 0:32:31]}  Qxe4 {[%clk 0:29:00]} 21. Bc7 {[%clk 0:26:14]}  Rde8 {[%clk 0:16:08]}
22. Ne5 {[%clk 0:21:37]}  Qd4 {[%clk 0:14:08]} 23. Nxd7 {[%clk 0:17:49]}  Qxd7 {[%clk 0:14:30]} 24. Bxb7 {[%clk 0:18:07]}  Kh8 {[%clk 0:09:50]}
25. Bd5 {[%clk 0:15:42]}  f5 {[%clk 0:08:29]} 26. Bf4 {[%clk 0:15:21]}  Bd4 {[%clk 0:05:36]} 27. Bf3 {[%clk 0:09:56]}  Qa7 {[%clk 0:05:01]}
28. Kg2 {[%clk 0:09:41]}  Qg7 {[%clk 0:04:27]} 29. h4 {[%clk 0:09:47]}  Re6 {[%clk 0:04:14]} 30. Qd5 {[%clk 0:08:41]}  Rb6 {[%clk 0:03:50]}
31. c5 {[%clk 0:07:31]}  Rb4 {[%clk 0:03:26]} 32. c6 {[%clk 0:07:31]}  Bf6 {[%clk 0:01:37]} 33. Bd6 {[%clk 0:05:21]}  Rd4 {[%clk 0:01:33]}
34. Bxf8 {[%clk 0:05:21]}  Qxf8 {[%clk 0:01:58]} 35. Qe6 {[%clk 0:05:15]}  Rd6 {[%clk 0:00:44]} 36. Qc4 {[%clk 0:05:37]}  Qe8 {[%clk 0:00:50]}
37. c7 {[%clk 0:05:35]}  Qc8 {[%clk 0:00:58]} 38. Re1 {[%clk 0:05:20]}  Rd7 {[%clk 0:00:39]} 39. Re8+ {[%clk 0:04:57]} 1-0

[Event "2026 European Womens Championship"]
[Site "Batumi, GE"]
[Date "2026.06.02"]
[Round "8"]
[White "Demirtas, Hafize"]
[Black "Dwilewicz, Katarzyna"]
[Result "0-1"]
[Board "60"]
[TimeControl "5400+30"]
[WhiteFideId "6382070"]
[BlackFideId "1148486"]
[WhiteElo "1928"]
[BlackElo "2131"]
[BlackTitle "WIM"]
[WhiteClock "0:23:01"]
[BlackClock "0:21:52"]
[Variant "Standard"]

1. f4 {[%clk 1:28:58]}  d5 {[%clk 1:28:31]} 2. Nf3 {[%clk 1:29:20]}  Nf6 {[%clk 1:28:29]} 3. e3 {[%clk 1:29:38]}  g6 {[%clk 1:27:10]}
4. b3 {[%clk 1:29:57]}  Bg7 {[%clk 1:27:25]} 5. Bb2 {[%clk 1:30:20]}  O-O {[%clk 1:26:45]} 6. a4 {[%clk 1:30:34]}  c5 {[%clk 1:26:39]}
7. Be2 {[%clk 1:30:34]}  Nc6 {[%clk 1:26:33]} 8. O-O {[%clk 1:30:55]}  d4 {[%clk 1:16:40]} 9. Qc1 {[%clk 1:25:00]}  Nd5 {[%clk 1:14:17]}
10. Bc4 {[%clk 1:20:30]}  Bg4 {[%clk 1:06:05]} 11. Bxd5 {[%clk 1:18:49]}  Qxd5 {[%clk 1:06:19]} 12. d3 {[%clk 1:19:13]}  dxe3 {[%clk 0:57:18]}
13. Bxg7 {[%clk 1:17:15]}  e2 {[%clk 0:55:41]} 14. Nc3 {[%clk 1:06:50]}  exf1=Q+ {[%clk 0:55:23]} 15. Qxf1 {[%clk 0:54:37]}  Qd7 {[%clk 0:45:31]}
16. Bxf8 {[%clk 0:54:21]}  Bxf3 {[%clk 0:44:53]} 17. Bh6 {[%clk 0:54:23]}  Qd4+ {[%clk 0:44:17]} 18. Kh1 {[%clk 0:54:21]}  Qxc3 {[%clk 0:44:02]}
19. gxf3 {[%clk 0:54:41]}  Nd4 {[%clk 0:30:45]} 20. f5 {[%clk 0:51:14]}  Nxf5 {[%clk 0:30:09]} 21. Bf4 {[%clk 0:51:00]}  Qxc2 {[%clk 0:27:39]}
22. d4 {[%clk 0:37:48]}  Nxd4 {[%clk 0:25:10]} 23. Rc1 {[%clk 0:33:01]}  Qf5 {[%clk 0:17:41]} 24. Be3 {[%clk 0:32:40]}  Nxb3 {[%clk 0:11:14]}
25. Rc4 {[%clk 0:33:03]}  Nd4 {[%clk 0:10:13]} 26. Bxd4 {[%clk 0:28:41]}  cxd4 {[%clk 0:10:41]} 27. Rxd4 {[%clk 0:29:04]}  Rc8 {[%clk 0:10:49]}
28. Qd1 {[%clk 0:29:18]}  Kg7 {[%clk 0:09:29]} 29. Rb4 {[%clk 0:23:14]}  b6 {[%clk 0:08:10]} 30. Rb5 {[%clk 0:19:30]}  Qf4 {[%clk 0:07:43]}
31. Kg2 {[%clk 0:17:24]}  Rc6 {[%clk 0:04:37]} 32. Rd5 {[%clk 0:16:43]}  h5 {[%clk 0:04:01]} 33. a5 {[%clk 0:09:20]}  bxa5 {[%clk 0:03:50]}
34. Rxa5 {[%clk 0:08:00]}  Rd6 {[%clk 0:03:54]} 35. Qa1+ {[%clk 0:04:49]}  Kh7 {[%clk 0:02:56]} 36. Ra2 {[%clk 0:05:11]}  Rd2+ {[%clk 0:02:35]}
37. Rxd2 {[%clk 0:05:30]}  Qxd2+ {[%clk 0:03:04]} 38. Kg3 {[%clk 0:05:42]}  a5 {[%clk 0:02:18]} 39. Kh3 {[%clk 0:00:55]}  Qd7+ {[%clk 0:01:34]}
40. Kg2 {[%clk 0:00:58]}  a4 {[%clk 0:01:40]} 41. Qa3 {[%clk 0:00:59]}  Qd2+ {[%clk 0:01:05]} 42. Kh3 {[%clk 0:01:02]}  Qd1 {[%clk 0:29:31]}
43. Kg2 {[%clk 0:26:51]}  e5 {[%clk 0:26:42]} 44. Qf8 {[%clk 0:25:48]}  Qd2+ {[%clk 0:25:24]} 45. Kg1 {[%clk 0:25:00]}  Qf4 {[%clk 0:25:30]}
46. Kg2 {[%clk 0:23:16]}  h4 {[%clk 0:25:39]} 47. Qa8 {[%clk 0:22:42]}  Kg7 {[%clk 0:25:53]} 48. Qa7 {[%clk 0:22:23]}  h3+ {[%clk 0:23:56]}
49. Kxh3 {[%clk 0:22:20]}  Qxf3+ {[%clk 0:24:21]} 50. Kh4 {[%clk 0:22:42]}  Qe4+ {[%clk 0:21:54]} 51. Kg3 {[%clk 0:23:01]}  Qd3+ {[%clk 0:21:52]} 0-1

[Event "2026 European Womens Championship"]
[Site "Batumi, GE"]
[Date "2026.06.02"]
[Round "8"]
[White "Ivekovic, Tihana"]
[Black "Ashotia, Barbare"]
[Result "1-0"]
[Board "61"]
[TimeControl "5400+30"]
[WhiteFideId "14517825"]
[BlackFideId "13625187"]
[WhiteElo "2119"]
[BlackElo "1913"]
[WhiteTitle "WFM"]
[WhiteClock "0:02:07"]
[BlackClock "0:01:02"]
[Variant "Standard"]

1. e4 {[%clk 1:30:57]}  c5 {[%clk 1:30:53]} 2. Nf3 {[%clk 1:31:22]}  Nc6 {[%clk 1:30:43]} 3. c3 {[%clk 1:31:45]}  d5 {[%clk 1:31:06]}
4. exd5 {[%clk 1:32:08]}  Qxd5 {[%clk 1:31:14]} 5. d4 {[%clk 1:32:16]}  Bf5 {[%clk 1:31:16]} 6. Be3 {[%clk 1:27:24]}  Nf6 {[%clk 1:30:57]}
7. dxc5 {[%clk 1:20:39]}  Qxd1+ {[%clk 1:30:55]} 8. Kxd1 {[%clk 1:21:03]}  Nd5 {[%clk 1:30:28]} 9. Bc4 {[%clk 1:13:32]}  Nxe3+ {[%clk 1:24:51]}
10. fxe3 {[%clk 1:13:52]}  e5 {[%clk 1:24:39]} 11. b4 {[%clk 1:11:16]}  f6 {[%clk 1:21:31]} 12. a3 {[%clk 0:42:52]}  a5 {[%clk 1:07:12]}
13. Bb5 {[%clk 0:43:08]}  O-O-O+ {[%clk 1:07:10]} 14. Kc1 {[%clk 0:40:29]}  g5 {[%clk 1:02:40]} 15. Re1 {[%clk 0:31:20]}  Bh6 {[%clk 0:35:28]}
16. Nbd2 {[%clk 0:25:30]}  Na7 {[%clk 0:26:45]} 17. Bf1 {[%clk 0:24:38]}  Bd3 {[%clk 0:26:15]} 18. Bxd3 {[%clk 0:21:20]}  Rxd3 {[%clk 0:26:37]}
19. Kc2 {[%clk 0:21:32]}  Rhd8 {[%clk 0:19:27]} 20. Nc4 {[%clk 0:18:55]}  Nb5 {[%clk 0:10:56]} 21. Nd6+ {[%clk 0:18:51]}  R8xd6 {[%clk 0:10:34]}
22. cxd6 {[%clk 0:19:15]}  Rxc3+ {[%clk 0:10:25]} 23. Kd2 {[%clk 0:17:01]}  Rxa3 {[%clk 0:09:36]} 24. bxa5 {[%clk 0:12:24]}  Rxa1 {[%clk 0:07:47]}
25. Rxa1 {[%clk 0:12:48]}  Nxd6 {[%clk 0:08:12]} 26. g4 {[%clk 0:13:02]}  Bf8 {[%clk 0:06:01]} 27. Ke2 {[%clk 0:13:02]}  Ne4 {[%clk 0:05:29]}
28. a6 {[%clk 0:06:54]}  bxa6 {[%clk 0:05:50]} 29. Rxa6 {[%clk 0:07:18]}  Kb7 {[%clk 0:02:25]} 30. Re6 {[%clk 0:02:08]}  Bc5 {[%clk 0:02:35]}
31. Nd2 {[%clk 0:00:58]}  Nc3+ {[%clk 0:02:30]} 32. Kf3 {[%clk 0:00:58]}  Nd5 {[%clk 0:01:03]} 33. e4 {[%clk 0:01:18]}  Nf4 {[%clk 0:00:45]}
34. Rxf6 {[%clk 0:01:41]}  Nd3 {[%clk 0:00:55]} 35. Rf7+ {[%clk 0:01:55]}  Kc6 {[%clk 0:01:20]} 36. Rxh7 {[%clk 0:02:12]}  Ne1+ {[%clk 0:01:14]}
37. Ke2 {[%clk 0:02:31]}  Nc2 {[%clk 0:00:58]} 38. Nf3 {[%clk 0:01:48]}  Bd6 {[%clk 0:00:43]} 39. Nxg5 {[%clk 0:01:49]}  Nd4+ {[%clk 0:01:02]}
40. Kd3 {[%clk 0:02:07]} 1-0

[Event "2026 European Womens Championship"]
[Site "Batumi, GE"]
[Date "2026.06.02"]
[Round "8"]
[White "Liavonava, Yuliya"]
[Black "Kalandadze, Mariam"]
[Result "1-0"]
[Board "62"]
[TimeControl "5400+30"]
[WhiteFideId "13524178"]
[BlackFideId "13621122"]
[WhiteElo "2118"]
[BlackElo "1892"]
[WhiteTitle "WFM"]
[WhiteClock "0:23:22"]
[BlackClock "0:21:36"]
[Variant "Standard"]

1. c4 {[%clk 1:30:58]}  Nf6 {[%clk 1:27:49]} 2. Nc3 {[%clk 1:31:21]}  g6 {[%clk 1:28:10]} 3. e4 {[%clk 1:31:43]}  d6 {[%clk 1:28:36]}
4. d4 {[%clk 1:32:09]}  Bg7 {[%clk 1:29:01]} 5. h3 {[%clk 1:32:32]}  O-O {[%clk 1:29:23]} 6. Be3 {[%clk 1:31:57]}  c5 {[%clk 1:27:38]}
7. Nf3 {[%clk 1:28:31]}  a6 {[%clk 1:26:05]} 8. Qd2 {[%clk 1:17:02]}  Qc7 {[%clk 1:24:07]} 9. Be2 {[%clk 1:10:44]}  Bd7 {[%clk 1:21:24]}
10. a4 {[%clk 1:09:27]}  Nc6 {[%clk 1:15:53]} 11. d5 {[%clk 0:55:38]}  Na5 {[%clk 1:07:32]} 12. Qc2 {[%clk 0:56:03]}  e6 {[%clk 1:07:23]}
13. O-O {[%clk 0:53:09]}  exd5 {[%clk 1:06:52]} 14. cxd5 {[%clk 0:50:05]}  Rfb8 {[%clk 1:01:46]} 15. Bf4 {[%clk 0:48:21]}  Nh5 {[%clk 1:01:00]}
16. Bh2 {[%clk 0:48:11]}  b5 {[%clk 0:58:46]} 17. axb5 {[%clk 0:46:29]}  axb5 {[%clk 0:58:15]} 18. Nb1 {[%clk 0:43:14]}  Nb7 {[%clk 0:49:21]}
19. Nbd2 {[%clk 0:37:17]}  Qd8 {[%clk 0:47:05]} 20. Rae1 {[%clk 0:32:00]}  Ra2 {[%clk 0:40:16]} 21. e5 {[%clk 0:32:11]}  dxe5 {[%clk 0:35:23]}
22. Nxe5 {[%clk 0:32:24]}  Rba8 {[%clk 0:34:59]} 23. Bxh5 {[%clk 0:29:33]}  gxh5 {[%clk 0:35:21]} 24. Qb3 {[%clk 0:25:49]}  Be8 {[%clk 0:32:24]}
25. Ne4 {[%clk 0:23:24]}  c4 {[%clk 0:27:05]} 26. Qf3 {[%clk 0:23:50]}  Rxb2 {[%clk 0:24:47]} 27. Nc6 {[%clk 0:23:59]}  Bxc6 {[%clk 0:21:01]}
28. dxc6 {[%clk 0:24:25]}  Na5 {[%clk 0:21:25]} 29. c7 {[%clk 0:24:40]}  Qf8 {[%clk 0:21:29]} 30. Nf6+ {[%clk 0:23:42]}  Kh8 {[%clk 0:21:36]}
31. Qxa8 {[%clk 0:23:22]} 1-0